[Event "Late-Titled-Tuesday-Blitz-March-05-2024"]
[Site "Chess.com"]
[Date "2024.03.05"]
[Round "11"]
[White "Vesapesa"]
[Black "protectiago"]
[Result "1-0"]
[WhiteElo "2222"]
[BlackElo "2064"]
[TimeControl "180+1"]
[EndTime "16:02:24 PST"]
[Termination "Vesapesa won on time"]

1. e4 {[%clk 0:03:00.9]} 1... e5 {[%clk 0:02:59.6]} 2. Nf3 {[%clk 0:02:59.3]}
2... Nc6 {[%clk 0:02:59.7]} 3. Bc4 {[%clk 0:02:58.7]} 3... Bc5 {[%clk
0:02:59.2]} 4. d3 {[%clk 0:02:58.6]} 4... Nf6 {[%clk 0:02:59]} 5. Nc3 {[%clk
0:02:58.5]} 5... h6 {[%clk 0:02:59]} 6. Be3 {[%clk 0:02:58.9]} 6... Bb6 {[%clk
0:02:57.4]} 7. Nd5 {[%clk 0:02:58.6]} 7... O-O {[%clk 0:02:51.7]} 8. c3 {[%clk
0:02:55]} 8... Ng4 {[%clk 0:02:35.7]} 9. Nxb6 {[%clk 0:02:46.2]} 9... Nxe3
{[%clk 0:02:32.7]} 10. fxe3 {[%clk 0:02:37.7]} 10... axb6 {[%clk 0:02:32.9]} 11.
O-O {[%clk 0:02:34.7]} 11... d6 {[%clk 0:02:32.7]} 12. Qe1 {[%clk 0:02:32.8]}
12... Na5 {[%clk 0:02:20.1]} 13. Bb5 {[%clk 0:02:22]} 13... c6 {[%clk
0:02:09.7]} 14. Ba4 {[%clk 0:02:21.5]} 14... b5 {[%clk 0:01:46.8]} 15. Bc2
{[%clk 0:02:20]} 15... b6 {[%clk 0:01:44.6]} 16. d4 {[%clk 0:02:18.3]} 16... Qe7
{[%clk 0:01:36.2]} 17. Nh4 {[%clk 0:02:06.2]} 17... Nc4 {[%clk 0:01:17.8]} 18.
Nf5 {[%clk 0:02:05.3]} 18... Bxf5 {[%clk 0:01:14.9]} 19. exf5 {[%clk 0:02:06.2]}
19... Qg5 {[%clk 0:01:07]} 20. Rf3 {[%clk 0:01:54.3]} 20... exd4 {[%clk
0:00:57.2]} 21. exd4 {[%clk 0:01:49.8]} 21... Rae8 {[%clk 0:00:54.8]} 22. Qf2
{[%clk 0:01:40.1]} 22... Re3 {[%clk 0:00:33.4]} 23. f6 {[%clk 0:01:23.2]} 23...
Rxf3 {[%clk 0:00:27.7]} 24. Qxf3 {[%clk 0:01:23]} 24... Ne3 {[%clk 0:00:18.1]}
25. fxg7 {[%clk 0:01:17]} 25... Re8 {[%clk 0:00:18.4]} 26. Bb3 {[%clk
0:01:11.8]} 26... d5 {[%clk 0:00:15]} 27. Re1 {[%clk 0:01:08.7]} 27... Kxg7
{[%clk 0:00:12.8]} 28. h4 {[%clk 0:00:54.3]} 28... Qe7 {[%clk 0:00:06.9]} 29.
Qg3+ {[%clk 0:00:44.6]} 29... Kh8 {[%clk 0:00:05.4]} 30. Qf4 {[%clk 0:00:40.9]}
30... Kg7 {[%clk 0:00:02.6]} 31. Bc2 {[%clk 0:00:34.9]} 31... f5 {[%clk
0:00:02.4]} 32. Bxf5 {[%clk 0:00:32.9]} 1-0

[Event "Late-Titled-Tuesday-Blitz-March-05-2024"]
[Site "Chess.com"]
[Date "2024.03.05"]
[Round "11"]
[White "howitzer14"]
[Black "Jahonas"]
[Result "1-0"]
[WhiteElo "2986"]
[BlackElo "2385"]
[TimeControl "180+1"]
[EndTime "16:02:25 PST"]
[Termination "howitzer14 won by resignation"]

1. d4 {[%clk 0:02:53.5]} 1... Nf6 {[%clk 0:02:59.4]} 2. c4 {[%clk 0:02:53]} 2...
e6 {[%clk 0:02:59]} 3. Nc3 {[%clk 0:02:52.6]} 3... Bb4 {[%clk 0:02:58.9]} 4. e3
{[%clk 0:02:52.4]} 4... b6 {[%clk 0:02:58.6]} 5. Ne2 {[%clk 0:02:48.4]} 5... Bb7
{[%clk 0:02:58.3]} 6. a3 {[%clk 0:02:48.9]} 6... Be7 {[%clk 0:02:57.3]} 7. d5
{[%clk 0:02:48.4]} 7... O-O {[%clk 0:02:55.9]} 8. Ng3 {[%clk 0:02:45.9]} 8...
exd5 {[%clk 0:02:55.1]} 9. cxd5 {[%clk 0:02:42.6]} 9... Re8 {[%clk 0:02:54.7]}
10. Bc4 {[%clk 0:02:40]} 10... d6 {[%clk 0:02:49]} 11. O-O {[%clk 0:02:28.9]}
11... Nbd7 {[%clk 0:02:47]} 12. Re1 {[%clk 0:02:19.7]} 12... Bf8 {[%clk
0:02:47.2]} 13. e4 {[%clk 0:02:07.6]} 13... a6 {[%clk 0:02:42.7]} 14. Nf5 {[%clk
0:01:58.1]} 14... Nc5 {[%clk 0:02:29]} 15. f3 {[%clk 0:01:49.8]} 15... b5 {[%clk
0:02:25.6]} 16. Ba2 {[%clk 0:01:44.1]} 16... g6 {[%clk 0:02:20.9]} 17. Nd4
{[%clk 0:01:35.5]} 17... h6 {[%clk 0:01:29.5]} 18. Be3 {[%clk 0:01:32.5]} 18...
Qd7 {[%clk 0:01:26]} 19. b4 {[%clk 0:01:27]} 19... Na4 {[%clk 0:01:20]} 20. Nxa4
{[%clk 0:01:27.2]} 20... bxa4 {[%clk 0:01:19.4]} 21. Rc1 {[%clk 0:01:28.1]}
21... Bg7 {[%clk 0:01:09.4]} 22. Qd2 {[%clk 0:01:24.7]} 22... Kh7 {[%clk
0:01:05.5]} 23. Rc2 {[%clk 0:01:23.8]} 23... Re7 {[%clk 0:00:46.6]} 24. Rec1
{[%clk 0:01:19.2]} 24... Ne8 {[%clk 0:00:31.8]} 25. Bf2 {[%clk 0:01:02.6]} 25...
Rc8 {[%clk 0:00:19.4]} 26. Nc6 {[%clk 0:00:57.4]} 26... Bxc6 {[%clk 0:00:16.7]}
27. Rxc6 {[%clk 0:00:58.3]} 27... Ra8 {[%clk 0:00:15.4]} 28. Bb1 {[%clk
0:00:54]} 28... Qd8 {[%clk 0:00:10.9]} 29. Bd3 {[%clk 0:00:52.8]} 29... Qb8
{[%clk 0:00:10]} 30. Bxa6 {[%clk 0:00:50.6]} 30... f5 {[%clk 0:00:08.8]} 31.
exf5 {[%clk 0:00:50.1]} 31... gxf5 {[%clk 0:00:08.9]} 32. Bd3 {[%clk 0:00:50.6]}
32... Rf7 {[%clk 0:00:08.1]} 33. Qc2 {[%clk 0:00:47.7]} 33... Kh8 {[%clk
0:00:07.5]} 34. Bxf5 {[%clk 0:00:47.3]} 34... Nf6 {[%clk 0:00:08]} 35. Be6
{[%clk 0:00:45.8]} 35... Re7 {[%clk 0:00:07.6]} 36. Rxc7 {[%clk 0:00:46.2]}
36... Rxc7 {[%clk 0:00:06.2]} 37. Qxc7 {[%clk 0:00:47.1]} 37... Qe8 {[%clk
0:00:06]} 38. Qc6 {[%clk 0:00:42.5]} 38... Qe7 {[%clk 0:00:04.8]} 1-0

[Event "Late-Titled-Tuesday-Blitz-March-05-2024"]
[Site "Chess.com"]
[Date "2024.03.05"]
[Round "11"]
[White "ansko1999"]
[Black "adricalderon8"]
[Result "0-1"]
[WhiteElo "2646"]
[BlackElo "2531"]
[TimeControl "180+1"]
[EndTime "16:02:29 PST"]
[Termination "adricalderon8 won by checkmate"]

1. h4 {[%clk 0:03:00.9]} 1... d5 {[%clk 0:02:54.2]} 2. d4 {[%clk 0:03:00.5]}
2... c5 {[%clk 0:02:52.6]} 3. c3 {[%clk 0:02:58.2]} 3... Nc6 {[%clk 0:02:52.4]}
4. Nf3 {[%clk 0:02:58]} 4... Nf6 {[%clk 0:02:52]} 5. Bf4 {[%clk 0:02:56]} 5...
Bf5 {[%clk 0:02:52]} 6. e3 {[%clk 0:02:54.6]} 6... e6 {[%clk 0:02:51.7]} 7. Qb3
{[%clk 0:02:48]} 7... Qc8 {[%clk 0:02:47.2]} 8. Nbd2 {[%clk 0:02:46.4]} 8... Be7
{[%clk 0:02:46]} 9. h5 {[%clk 0:02:45]} 9... h6 {[%clk 0:02:44.7]} 10. Ne5
{[%clk 0:02:42]} 10... Nxe5 {[%clk 0:02:42.9]} 11. Bxe5 {[%clk 0:02:42]} 11...
O-O {[%clk 0:02:42.2]} 12. f3 {[%clk 0:02:37.8]} 12... cxd4 {[%clk 0:02:38.6]}
13. exd4 {[%clk 0:02:36.6]} 13... Nd7 {[%clk 0:02:38.5]} 14. Bf4 {[%clk
0:02:28.6]} 14... a6 {[%clk 0:02:24]} 15. g4 {[%clk 0:02:26]} 15... Bh7 {[%clk
0:02:23.6]} 16. Be2 {[%clk 0:02:18.7]} 16... b5 {[%clk 0:02:23.3]} 17. O-O
{[%clk 0:02:18.2]} 17... Nb6 {[%clk 0:02:22.7]} 18. Be5 {[%clk 0:02:12.9]} 18...
Nc4 {[%clk 0:02:22.4]} 19. Nxc4 {[%clk 0:02:07.8]} 19... bxc4 {[%clk 0:02:18.1]}
20. Qd1 {[%clk 0:02:07.9]} 20... Ra7 {[%clk 0:02:15.7]} 21. Qd2 {[%clk 0:01:59]}
21... Rb7 {[%clk 0:02:15]} 22. Bd1 {[%clk 0:01:51.4]} 22... Bd3 {[%clk
0:02:09.7]} 23. Rf2 {[%clk 0:01:50.5]} 23... Qd8 {[%clk 0:02:07.9]} 24. b3
{[%clk 0:01:43.4]} 24... a5 {[%clk 0:02:02.6]} 25. Bc2 {[%clk 0:01:38.2]} 25...
Bxc2 {[%clk 0:02:01.1]} 26. Qxc2 {[%clk 0:01:38.9]} 26... Bd6 {[%clk 0:01:52.9]}
27. bxc4 {[%clk 0:01:22.6]} 27... Bxe5 {[%clk 0:01:49.3]} 28. dxe5 {[%clk
0:01:23.5]} 28... dxc4 {[%clk 0:01:50]} 29. Qe4 {[%clk 0:01:16.7]} 29... Qc7
{[%clk 0:01:49.8]} 30. Rd1 {[%clk 0:01:13.6]} 30... Rbb8 {[%clk 0:01:45.5]} 31.
Rfd2 {[%clk 0:01:12.8]} 31... Qc5+ {[%clk 0:01:40.7]} 32. Kg2 {[%clk 0:01:11.4]}
32... a4 {[%clk 0:01:40.9]} 33. Kg3 {[%clk 0:01:10.4]} 33... a3 {[%clk
0:01:40.4]} 34. Qf4 {[%clk 0:00:42]} 34... Rb5 {[%clk 0:01:35.3]} 35. Re1 {[%clk
0:00:34.2]} 35... Rb2 {[%clk 0:01:33.7]} 36. g5 {[%clk 0:00:31.2]} 36... hxg5
{[%clk 0:01:14.8]} 37. Qxg5 {[%clk 0:00:32.1]} 37... f6 {[%clk 0:01:04.4]} 38.
Qf4 {[%clk 0:00:06]} 38... fxe5 {[%clk 0:01:00.8]} 39. Qg5 {[%clk 0:00:02.9]}
39... Rxd2 {[%clk 0:00:59.9]} 40. Qxd2 {[%clk 0:00:03.8]} 40... e4 {[%clk
0:01:00.5]} 41. Rxe4 {[%clk 0:00:03.2]} 41... Qxh5 {[%clk 0:00:59.4]} 42. Rg4
{[%clk 0:00:02.9]} 42... Qe5+ {[%clk 0:00:58.6]} 43. Kg2 {[%clk 0:00:03.2]}
43... Rb8 {[%clk 0:00:57.5]} 44. Qg5 {[%clk 0:00:02.7]} 44... Rb2+ {[%clk
0:00:56.5]} 45. Kg1 {[%clk 0:00:02]} 45... Qh2+ {[%clk 0:00:56]} 46. Kf1 {[%clk
0:00:01.6]} 46... Qf2# {[%clk 0:00:54.5]} 0-1

[Event "Late-Titled-Tuesday-Blitz-March-05-2024"]
[Site "Chess.com"]
[Date "2024.03.05"]
[Round "11"]
[White "rychessmaster1"]
[Black "MathiasWomacka"]
[Result "1-0"]
[WhiteElo "2716"]
[BlackElo "2548"]
[TimeControl "180+1"]
[EndTime "16:02:32 PST"]
[Termination "rychessmaster1 won on time"]

1. d4 {[%clk 0:03:00.9]} 1... Nf6 {[%clk 0:02:58.6]} 2. Nc3 {[%clk 0:03:00.4]}
2... d5 {[%clk 0:02:54.9]} 3. Bf4 {[%clk 0:03:00.8]} 3... a6 {[%clk 0:02:51.2]}
4. e3 {[%clk 0:03:00.8]} 4... e6 {[%clk 0:02:50]} 5. Nf3 {[%clk 0:02:59.7]} 5...
c5 {[%clk 0:02:46.9]} 6. dxc5 {[%clk 0:02:59.5]} 6... Bxc5 {[%clk 0:02:43.4]} 7.
Bd3 {[%clk 0:02:59.1]} 7... Nc6 {[%clk 0:02:41.2]} 8. O-O {[%clk 0:02:58.6]}
8... b5 {[%clk 0:02:31.8]} 9. e4 {[%clk 0:02:51.2]} 9... b4 {[%clk 0:02:30.2]}
10. exd5 {[%clk 0:02:50.8]} 10... bxc3 {[%clk 0:02:17.3]} 11. dxc6 {[%clk
0:02:51.3]} 11... cxb2 {[%clk 0:02:16.9]} 12. Rb1 {[%clk 0:02:52]} 12... Nd5
{[%clk 0:02:12.4]} 13. Be5 {[%clk 0:02:50.2]} 13... f6 {[%clk 0:02:09.4]} 14.
Bxb2 {[%clk 0:02:50.5]} 14... O-O {[%clk 0:02:05.9]} 15. Nd4 {[%clk 0:02:37.5]}
15... Qc7 {[%clk 0:02:01.6]} 16. Qf3 {[%clk 0:02:34.5]} 16... Nf4 {[%clk
0:01:37.6]} 17. Bc4 {[%clk 0:02:29.1]} 17... Kh8 {[%clk 0:01:35.7]} 18. Nb3
{[%clk 0:02:02.5]} 18... Be7 {[%clk 0:01:21]} 19. Bc3 {[%clk 0:01:58.4]} 19...
e5 {[%clk 0:01:18.2]} 20. Ba5 {[%clk 0:01:58.4]} 20... Qa7 {[%clk 0:01:14.3]}
21. Rfd1 {[%clk 0:01:36.4]} 21... Rb8 {[%clk 0:00:45.5]} 22. c7 {[%clk
0:01:26.3]} 22... Rb7 {[%clk 0:00:40.8]} 23. Rd8 {[%clk 0:01:15.6]} 23... Rxc7
{[%clk 0:00:38.6]} 24. Bxc7 {[%clk 0:01:15.3]} 24... Qxc7 {[%clk 0:00:38.3]} 25.
Rxf8+ {[%clk 0:01:14.8]} 25... Bxf8 {[%clk 0:00:36.3]} 26. Bd3 {[%clk
0:01:06.3]} 26... Nxd3 {[%clk 0:00:32.9]} 27. Qxd3 {[%clk 0:01:05.6]} 27... g6
{[%clk 0:00:33.2]} 28. Nd2 {[%clk 0:01:02]} 28... Bf5 {[%clk 0:00:29.3]} 29. Ne4
{[%clk 0:01:00.6]} 29... Kg7 {[%clk 0:00:24.4]} 30. h3 {[%clk 0:00:57.6]} 30...
Qc6 {[%clk 0:00:19.2]} 31. f3 {[%clk 0:00:58]} 31... Be7 {[%clk 0:00:19.2]} 32.
Kh2 {[%clk 0:00:52.7]} 32... h5 {[%clk 0:00:16.2]} 33. Qe3 {[%clk 0:00:43.7]}
33... h4 {[%clk 0:00:15.5]} 34. c3 {[%clk 0:00:41]} 34... Be6 {[%clk 0:00:12.5]}
35. Rb6 {[%clk 0:00:40]} 35... Qd7 {[%clk 0:00:10.1]} 36. Nc5 {[%clk 0:00:38.1]}
36... Bxc5 {[%clk 0:00:06.7]} 37. Qxc5 {[%clk 0:00:39]} 37... Kh6 {[%clk
0:00:06.8]} 38. Qd6 {[%clk 0:00:38]} 38... Qxd6 {[%clk 0:00:05.6]} 39. Rxd6
{[%clk 0:00:38.9]} 39... Bxa2 {[%clk 0:00:04.6]} 40. Rxa6 {[%clk 0:00:38.9]}
40... Bc4 {[%clk 0:00:02]} 41. Rxf6 {[%clk 0:00:39.5]} 41... Kg5 {[%clk
0:00:02]} 42. Rc6 {[%clk 0:00:39.8]} 1-0

[Event "Late-Titled-Tuesday-Blitz-March-05-2024"]
[Site "Chess.com"]
[Date "2024.03.05"]
[Round "11"]
[White "PapaieDudu"]
[Black "Ze-Pequeno"]
[Result "1-0"]
[WhiteElo "2440"]
[BlackElo "2312"]
[TimeControl "180+1"]
[EndTime "16:02:32 PST"]
[Termination "PapaieDudu won on time"]

1. Nf3 {[%clk 0:03:00.9]} 1... Nf6 {[%clk 0:02:56]} 2. d4 {[%clk 0:03:00.8]}
2... d5 {[%clk 0:02:55.2]} 3. c4 {[%clk 0:03:01.2]} 3... e6 {[%clk 0:02:55.4]}
4. Nc3 {[%clk 0:03:01.8]} 4... dxc4 {[%clk 0:02:55.5]} 5. e3 {[%clk 0:03:01.4]}
5... a6 {[%clk 0:02:54.1]} 6. Bxc4 {[%clk 0:02:58.5]} 6... b5 {[%clk 0:02:54]}
7. Bb3 {[%clk 0:02:59.3]} 7... c5 {[%clk 0:02:54.4]} 8. O-O {[%clk 0:02:59.5]}
8... Bb7 {[%clk 0:02:54.4]} 9. Qe2 {[%clk 0:02:59.6]} 9... Nbd7 {[%clk
0:02:54.7]} 10. a4 {[%clk 0:02:58]} 10... b4 {[%clk 0:02:54.2]} 11. Nb1 {[%clk
0:02:53.9]} 11... Bd6 {[%clk 0:02:47.6]} 12. a5 {[%clk 0:02:53.2]} 12... O-O
{[%clk 0:02:45.4]} 13. Rd1 {[%clk 0:02:53.3]} 13... Qc7 {[%clk 0:02:42.1]} 14.
Nbd2 {[%clk 0:02:51.8]} 14... cxd4 {[%clk 0:02:32.5]} 15. exd4 {[%clk
0:02:51.5]} 15... Rac8 {[%clk 0:02:11.5]} 16. Nc4 {[%clk 0:02:46.9]} 16... Bxf3
{[%clk 0:02:10]} 17. Qxf3 {[%clk 0:02:43.8]} 17... Bxh2+ {[%clk 0:02:10.1]} 18.
Kh1 {[%clk 0:02:44]} 18... Bd6 {[%clk 0:02:10.1]} 19. Bg5 {[%clk 0:02:44.1]}
19... h6 {[%clk 0:02:09.3]} 20. Nxd6 {[%clk 0:02:39.4]} 20... Qxd6 {[%clk
0:02:08.8]} 21. Bf4 {[%clk 0:02:39.9]} 21... Qe7 {[%clk 0:02:01.2]} 22. Re1
{[%clk 0:02:35]} 22... Qd8 {[%clk 0:01:56.4]} 23. Bd6 {[%clk 0:02:33.3]} 23...
Re8 {[%clk 0:01:55.3]} 24. Bxb4 {[%clk 0:02:27.2]} 24... Rb8 {[%clk 0:01:54.4]}
25. Bd6 {[%clk 0:02:25.7]} 25... Rb5 {[%clk 0:01:52.3]} 26. Qc3 {[%clk 0:01:57]}
26... Nd5 {[%clk 0:01:23.3]} 27. Qf3 {[%clk 0:01:49.1]} 27... N7f6 {[%clk
0:00:44.2]} 28. Bc5 {[%clk 0:01:33.1]} 28... Rxa5 {[%clk 0:00:40.7]} 29. Ba4
{[%clk 0:01:31]} 29... Rxa4 {[%clk 0:00:18.5]} 30. Rxa4 {[%clk 0:01:31.5]} 30...
Qc8 {[%clk 0:00:18.9]} 31. b4 {[%clk 0:01:25.7]} 31... Qb7 {[%clk 0:00:16.1]}
32. Rea1 {[%clk 0:01:25]} 32... Qb5 {[%clk 0:00:11.7]} 33. Rxa6 {[%clk
0:01:19.7]} 33... Qc4 {[%clk 0:00:11.3]} 34. Ra8 {[%clk 0:01:11.8]} 34... Rxa8
{[%clk 0:00:10.5]} 35. Rxa8+ {[%clk 0:01:12.3]} 35... Kh7 {[%clk 0:00:11.4]} 36.
Kh2 {[%clk 0:01:07.2]} 36... Qc2 {[%clk 0:00:08]} 37. Ra3 {[%clk 0:00:58.3]}
37... g6 {[%clk 0:00:05.6]} 38. Be7 {[%clk 0:00:47.4]} 38... Ne4 {[%clk
0:00:02.3]} 39. Qxf7+ {[%clk 0:00:44.7]} 1-0

[Event "Late-Titled-Tuesday-Blitz-March-05-2024"]
[Site "Chess.com"]
[Date "2024.03.05"]
[Round "11"]
[White "cthulhuuu"]
[Black "Arlo2024"]
[Result "0-1"]
[WhiteElo "2416"]
[BlackElo "2300"]
[TimeControl "180+1"]
[EndTime "16:02:32 PST"]
[Termination "Arlo2024 won on time"]

1. e4 {[%clk 0:03:00.9]} 1... e6 {[%clk 0:03:00.1]} 2. d3 {[%clk 0:03:00.6]}
2... d5 {[%clk 0:03:00.8]} 3. Nd2 {[%clk 0:03:01]} 3... c5 {[%clk 0:03:01.3]} 4.
Ngf3 {[%clk 0:03:00.6]} 4... Nc6 {[%clk 0:03:01.9]} 5. g3 {[%clk 0:03:00.7]}
5... Bd6 {[%clk 0:03:02.6]} 6. Bg2 {[%clk 0:03:00.7]} 6... Nge7 {[%clk
0:03:03.2]} 7. O-O {[%clk 0:03:00.6]} 7... O-O {[%clk 0:03:03.9]} 8. Re1 {[%clk
0:03:00.8]} 8... Qc7 {[%clk 0:03:04.6]} 9. Qe2 {[%clk 0:02:56.4]} 9... f6 {[%clk
0:03:04.7]} 10. c3 {[%clk 0:02:52.8]} 10... d4 {[%clk 0:03:05.2]} 11. Nc4 {[%clk
0:02:48.1]} 11... e5 {[%clk 0:03:05.4]} 12. a4 {[%clk 0:02:45.6]} 12... Be6
{[%clk 0:03:04.6]} 13. Nxd6 {[%clk 0:02:37.6]} 13... Qxd6 {[%clk 0:03:05.5]} 14.
c4 {[%clk 0:02:37.7]} 14... Nb4 {[%clk 0:02:59.8]} 15. a5 {[%clk 0:02:33]} 15...
b6 {[%clk 0:02:43.6]} 16. Nh4 {[%clk 0:02:29.4]} 16... b5 {[%clk 0:02:14.1]} 17.
b3 {[%clk 0:02:23.6]} 17... bxc4 {[%clk 0:02:10.9]} 18. bxc4 {[%clk 0:02:24.5]}
18... Rab8 {[%clk 0:02:10.3]} 19. f4 {[%clk 0:02:20.8]} 19... Nbc6 {[%clk
0:01:58]} 20. Bf3 {[%clk 0:00:38.3]} 20... Rb3 {[%clk 0:01:56.6]} 21. Rd1 {[%clk
0:00:25.5]} 21... Qd7 {[%clk 0:01:51.2]} 22. f5 {[%clk 0:00:20.7]} 22... Bf7
{[%clk 0:01:50.8]} 23. Bh5 {[%clk 0:00:21.4]} 23... Qe8 {[%clk 0:01:35.5]} 24.
Bxf7+ {[%clk 0:00:20.9]} 24... Qxf7 {[%clk 0:01:36.4]} 25. Qg4 {[%clk
0:00:17.9]} 25... Rfb8 {[%clk 0:01:35.7]} 26. Nf3 {[%clk 0:00:13.8]} 26... Nb4
{[%clk 0:01:34.6]} 27. Ne1 {[%clk 0:00:12.1]} 27... Nbc6 {[%clk 0:01:20.2]} 28.
Qe2 {[%clk 0:00:12]} 28... a6 {[%clk 0:01:10]} 29. Qc2 {[%clk 0:00:12.1]} 29...
Qh5 {[%clk 0:01:03.8]} 30. Ba3 {[%clk 0:00:09.3]} 30... Rc3 {[%clk 0:01:01.7]}
31. Qd2 {[%clk 0:00:08.9]} 31... Nb4 {[%clk 0:01:00.7]} 32. Rdc1 {[%clk
0:00:04.1]} 32... Rxc1 {[%clk 0:00:56.2]} 33. Rxc1 {[%clk 0:00:05]} 33... Nec6
{[%clk 0:00:56]} 34. Rb1 {[%clk 0:00:05.1]} 34... Qg4 {[%clk 0:00:51.7]} 35. Qd1
{[%clk 0:00:04.7]} 35... Qxd1 {[%clk 0:00:46.8]} 36. Rxd1 {[%clk 0:00:05.6]}
36... Nxa5 {[%clk 0:00:47.1]} 37. Rb1 {[%clk 0:00:05]} 37... Nac6 {[%clk
0:00:47.5]} 38. Bxb4 {[%clk 0:00:04.6]} 38... Rxb4 {[%clk 0:00:46.6]} 39. Ra1
{[%clk 0:00:04.6]} 39... a5 {[%clk 0:00:46.1]} 40. Nc2 {[%clk 0:00:04.7]} 40...
Rb3 {[%clk 0:00:45.7]} 41. Ra3 {[%clk 0:00:05]} 41... Rb1+ {[%clk 0:00:43.8]}
42. Kf2 {[%clk 0:00:04.4]} 42... Rb2 {[%clk 0:00:44.4]} 0-1

[Event "Late-Titled-Tuesday-Blitz-March-05-2024"]
[Site "Chess.com"]
[Date "2024.03.05"]
[Round "11"]
[White "MaiqMaster"]
[Black "Yurovskykh_Oleksandr"]
[Result "0-1"]
[WhiteElo "2339"]
[BlackElo "2629"]
[TimeControl "180+1"]
[EndTime "16:02:46 PST"]
[Termination "Yurovskykh_Oleksandr won on time"]

1. d4 {[%clk 0:03:00.9]} 1... d5 {[%clk 0:02:53.4]} 2. c4 {[%clk 0:02:57]} 2...
e6 {[%clk 0:02:52.4]} 3. Nf3 {[%clk 0:02:56.7]} 3... Nf6 {[%clk 0:02:50.4]} 4.
g3 {[%clk 0:02:56.3]} 4... Bb4+ {[%clk 0:02:48.1]} 5. Nbd2 {[%clk 0:02:54.5]}
5... O-O {[%clk 0:02:45.2]} 6. Bg2 {[%clk 0:02:53.6]} 6... dxc4 {[%clk
0:02:45.5]} 7. Qc2 {[%clk 0:02:53.7]} 7... b5 {[%clk 0:02:42.2]} 8. a4 {[%clk
0:02:53.7]} 8... c6 {[%clk 0:02:42.1]} 9. axb5 {[%clk 0:02:53.8]} 9... cxb5
{[%clk 0:02:43]} 10. Ng5 {[%clk 0:02:54.1]} 10... Nc6 {[%clk 0:02:19.6]} 11.
Bxc6 {[%clk 0:02:51.9]} 11... Rb8 {[%clk 0:02:20]} 12. e3 {[%clk 0:02:35.2]}
12... h6 {[%clk 0:02:09.7]} 13. Ne4 {[%clk 0:02:33.8]} 13... Nd5 {[%clk
0:01:55.2]} 14. Nc3 {[%clk 0:02:15.1]} 14... a6 {[%clk 0:01:46.7]} 15. O-O
{[%clk 0:02:07.3]} 15... Qd6 {[%clk 0:01:40.9]} 16. Bxd5 {[%clk 0:02:05.9]}
16... exd5 {[%clk 0:01:41.8]} 17. b3 {[%clk 0:01:52.4]} 17... Be6 {[%clk
0:01:37]} 18. bxc4 {[%clk 0:01:52]} 18... dxc4 {[%clk 0:01:37.9]} 19. Nde4
{[%clk 0:01:45]} 19... Qc6 {[%clk 0:01:35.1]} 20. d5 {[%clk 0:01:39]} 20... Bxd5
{[%clk 0:01:32.9]} 21. Nxd5 {[%clk 0:01:39.9]} 21... Qxd5 {[%clk 0:01:33.5]} 22.
Rd1 {[%clk 0:01:38.2]} 22... Qc6 {[%clk 0:01:24.4]} 23. Bb2 {[%clk 0:01:36.8]}
23... Rfe8 {[%clk 0:01:22.4]} 24. Nc3 {[%clk 0:01:32.1]} 24... Bf8 {[%clk
0:01:18]} 25. Nd5 {[%clk 0:01:26.1]} 25... b4 {[%clk 0:01:04.6]} 26. Qa4 {[%clk
0:01:12]} 26... Qxa4 {[%clk 0:01:04]} 27. Rxa4 {[%clk 0:01:12.9]} 27... c3
{[%clk 0:01:04.4]} 28. Ba1 {[%clk 0:01:07.7]} 28... Rec8 {[%clk 0:01:03.1]} 29.
Rxa6 {[%clk 0:01:01.1]} 29... Rb5 {[%clk 0:00:44.9]} 30. e4 {[%clk 0:00:58.6]}
30... Rc4 {[%clk 0:00:24.2]} 31. f3 {[%clk 0:00:43.3]} 31... Bc5+ {[%clk
0:00:24.4]} 32. Kf1 {[%clk 0:00:41.1]} 32... c2 {[%clk 0:00:24.8]} 33. Rc1
{[%clk 0:00:40]} 33... b3 {[%clk 0:00:25.2]} 34. Bb2 {[%clk 0:00:35.5]} 34...
Bd4 {[%clk 0:00:25.3]} 35. Bxd4 {[%clk 0:00:27.1]} 35... Rxd4 {[%clk 0:00:26.2]}
36. Rc6 {[%clk 0:00:05.2]} 36... Rd1+ {[%clk 0:00:18.4]} 37. Ke2 {[%clk
0:00:03]} 37... Rxc1 {[%clk 0:00:18.2]} 0-1

[Event "Late-Titled-Tuesday-Blitz-March-05-2024"]
[Site "Chess.com"]
[Date "2024.03.05"]
[Round "11"]
[White "Mikasinski"]
[Black "Byniolus"]
[Result "0-1"]
[WhiteElo "2686"]
[BlackElo "2790"]
[TimeControl "180+1"]
[EndTime "16:02:49 PST"]
[Termination "Byniolus won on time"]

1. e4 {[%clk 0:03:00.9]} 1... d6 {[%clk 0:02:59.8]} 2. d4 {[%clk 0:03:01]} 2...
Nf6 {[%clk 0:03:00.7]} 3. Nc3 {[%clk 0:03:01.3]} 3... c6 {[%clk 0:03:01.1]} 4.
Nf3 {[%clk 0:03:00.8]} 4... Bg4 {[%clk 0:03:00.9]} 5. Be2 {[%clk 0:03:00.9]}
5... e6 {[%clk 0:03:01]} 6. Bf4 {[%clk 0:03:00.5]} 6... Be7 {[%clk 0:03:00.8]}
7. Qd2 {[%clk 0:02:59.3]} 7... d5 {[%clk 0:03:01]} 8. exd5 {[%clk 0:02:59.2]}
8... cxd5 {[%clk 0:02:59.4]} 9. Ne5 {[%clk 0:02:56.8]} 9... Bxe2 {[%clk
0:02:58.9]} 10. Qxe2 {[%clk 0:02:57.2]} 10... O-O {[%clk 0:02:58.6]} 11. O-O-O
{[%clk 0:02:57.1]} 11... Nc6 {[%clk 0:02:45.7]} 12. g4 {[%clk 0:02:56.6]} 12...
Rc8 {[%clk 0:02:44]} 13. g5 {[%clk 0:02:49.8]} 13... Nd7 {[%clk 0:02:43.7]} 14.
Nxd7 {[%clk 0:02:46.3]} 14... Qxd7 {[%clk 0:02:43.4]} 15. h4 {[%clk 0:02:34.9]}
15... Na5 {[%clk 0:02:41.7]} 16. Rd3 {[%clk 0:02:27.7]} 16... Rc6 {[%clk
0:02:29.8]} 17. h5 {[%clk 0:02:24.6]} 17... Rfc8 {[%clk 0:02:27.5]} 18. g6
{[%clk 0:02:23.1]} 18... fxg6 {[%clk 0:02:25.5]} 19. hxg6 {[%clk 0:02:22.7]}
19... h6 {[%clk 0:02:26]} 20. Rh5 {[%clk 0:02:10.2]} 20... Nc4 {[%clk
0:02:07.8]} 21. Nd1 {[%clk 0:01:49.3]} 21... Qe8 {[%clk 0:01:40.7]} 22. Rg3
{[%clk 0:01:34.3]} 22... Bf6 {[%clk 0:01:37.9]} 23. Bxh6 {[%clk 0:00:48.7]}
23... gxh6 {[%clk 0:01:31.8]} 24. Rxh6 {[%clk 0:00:49]} 24... Nxb2 {[%clk
0:01:00.5]} 25. Nxb2 {[%clk 0:00:26.9]} 25... Rxc2+ {[%clk 0:01:00]} 26. Qxc2
{[%clk 0:00:27.7]} 26... Rxc2+ {[%clk 0:01:00.7]} 27. Kxc2 {[%clk 0:00:28.6]}
27... Qc6+ {[%clk 0:00:48.3]} 28. Kb1 {[%clk 0:00:27.9]} 28... Bg7 {[%clk
0:00:42]} 29. Rh1 {[%clk 0:00:25.2]} 29... Qb6 {[%clk 0:00:31]} 30. Rd1 {[%clk
0:00:16.2]} 30... Bxd4 {[%clk 0:00:26.8]} 31. Rb3 {[%clk 0:00:16.5]} 31... Qc5
{[%clk 0:00:24.6]} 32. Nd3 {[%clk 0:00:07.7]} 32... Qe7 {[%clk 0:00:14.8]} 33.
Nf4 {[%clk 0:00:04]} 33... Be5 {[%clk 0:00:12.6]} 34. Nd3 {[%clk 0:00:01.6]}
34... Bd6 {[%clk 0:00:10.8]} 35. Rc1 {[%clk 0:00:01.3]} 35... Kg7 {[%clk
0:00:11.1]} 0-1